[Event "Titled Tuesday Blitz May 16 Early 2023"]
[White "Weber, Samuel"]
[Black "Shapiro, Viktor"]
[WhiteFideId "12924008"]
[BlackFideId "4175700"]
[WhiteElo "2162"]
[BlackElo "2152"]
[Result "0-1"]
[Round "05"]
[TimeControl "180+2"]
[Date "2023.05.16"]
[WhiteClock "0:00:00"]
[BlackClock "0:00:55"]

1. b3 {[%clk 0:03:00]}  Nf6 {[%clk 0:02:58]} 2. Bb2 {[%clk 0:02:57]}  d5 {[%clk 0:02:58]} 3. Nf3 {[%clk 0:02:56]}  Bf5 {[%clk 0:02:58]} 4. e3 {[%clk 0:02:56]}  e6 {[%clk 0:02:59]} 5. c4 {[%clk 0:02:56]}  Bd6 {[%clk 0:02:57]} 6. Be2 {[%clk 0:02:54]}  c6 {[%clk 0:02:54]} 7. O-O {[%clk 0:02:54]}  Nbd7 {[%clk 0:02:54]} 8. Nc3 {[%clk 0:02:53]}  h6 {[%clk 0:02:53]} 9. d4 {[%clk 0:02:35]}  O-O {[%clk 0:02:52]} 10. Rc1 {[%clk 0:02:35]}  a6 {[%clk 0:02:47]} 11. cxd5 {[%clk 0:02:33]}  exd5 {[%clk 0:02:45]} 12. Na4 {[%clk 0:02:32]}  Re8 {[%clk 0:02:45]} 13. Nc5 {[%clk 0:02:29]}  Qc7 {[%clk 0:02:25]} 14. Nxd7 {[%clk 0:02:28]}  Nxd7 {[%clk 0:02:19]} 15. Bd3 {[%clk 0:02:14]}  Be4 {[%clk 0:02:17]} 16. h3 {[%clk 0:02:09]}  Nf6 {[%clk 0:02:12]} 17. Ne5 {[%clk 0:02:08]}  Qe7 {[%clk 0:02:07]} 18. f4 {[%clk 0:02:08]}  Rac8 {[%clk 0:02:05]} 19. Kh2 {[%clk 0:01:30]}  Bxd3 {[%clk 0:02:03]} 20. Qxd3 {[%clk 0:01:30]}  Ne4 {[%clk 0:02:04]} 21. Rce1 {[%clk 0:01:24]}  f6 {[%clk 0:02:04]} 22. Nf3 {[%clk 0:01:21]}  Qf7 {[%clk 0:01:50]} 23. Qd1 {[%clk 0:00:51]}  Qg6 {[%clk 0:01:47]} 24. g4 {[%clk 0:00:49]}  Qf7 {[%clk 0:01:41]} 25. Kh1 {[%clk 0:00:47]}  Ng3+ {[%clk 0:01:40]} 26. Kg2 {[%clk 0:00:48]}  Nxf1 {[%clk 0:01:41]} 27. Kxf1 {[%clk 0:00:48]}  g5 {[%clk 0:01:36]} 28. fxg5 {[%clk 0:00:42]}  fxg5 {[%clk 0:01:31]} 29. Kg2 {[%clk 0:00:42]}  Rf8 {[%clk 0:01:30]} 30. Rf1 {[%clk 0:00:42]}  Qg6 {[%clk 0:01:28]} 31. Qb1 {[%clk 0:00:26]}  Qxb1 {[%clk 0:01:25]} 32. Rxb1 {[%clk 0:00:27]}  Rce8 {[%clk 0:01:25]} 33. Ne5 {[%clk 0:00:27]}  Bxe5 {[%clk 0:01:14]} 34. dxe5 {[%clk 0:00:28]}  Kf7 {[%clk 0:01:13]} 35. Bd4 {[%clk 0:00:27]}  Ke6 {[%clk 0:01:12]} 36. b4 {[%clk 0:00:28]}  Rf7 {[%clk 0:01:12]} 37. a4 {[%clk 0:00:21]}  Ref8 {[%clk 0:01:12]} 38. Rb2 {[%clk 0:00:22]}  Rf1 {[%clk 0:01:11]} 39. b5 {[%clk 0:00:22]}  axb5 {[%clk 0:01:10]} 40. axb5 {[%clk 0:00:23]}  Rc1 {[%clk 0:01:06]} 41. bxc6 {[%clk 0:00:20]}  bxc6 {[%clk 0:01:06]} 42. Rb7 {[%clk 0:00:18]}  Rc2+ {[%clk 0:00:57]} 43. Kg1 {[%clk 0:00:13]}  Rf3 {[%clk 0:00:57]} 44. Rg7 {[%clk 0:00:11]}  Rg3+ {[%clk 0:00:55]} 45. Kf1 {[%clk 0:00:11]}  Rxh3 {[%clk 0:00:55]} 46. Rg6+ {[%clk 0:00:11]}  Kf7 {[%clk 0:00:55]} 47. Rf6+ {[%clk 0:00:10]}  Ke7 {[%clk 0:00:55]} 48. Kg1 {[%clk 0:00:00]}  c5 {[%clk 0:00:55]} 0-1


[Site "https://www.chess.com"]

[Event "Titled Tuesday Blitz May 16 Early 2023"]
[White "Pinto, Daniel"]
[Black "Manon-og, Ramon Jr."]
[WhiteFideId "3303144"]
[BlackFideId "5200776"]
[WhiteElo "2145"]
[BlackElo "2313"]
[Result "1-0"]
[Round "05"]
[TimeControl "180+2"]
[Date "2023.05.16"]
[WhiteClock "0:00:17"]
[BlackClock "0:00:31"]

1. e4 {[%clk 0:03:00]}  c5 {[%clk 0:02:59]} 2. Nf3 {[%clk 0:02:59]}  d6 {[%clk 0:03:00]} 3. Be2 {[%clk 0:02:56]}  Nf6 {[%clk 0:02:59]} 4. O-O {[%clk 0:02:53]}  Nxe4 {[%clk 0:02:58]} 5. d4 {[%clk 0:02:54]}  cxd4 {[%clk 0:02:55]} 6. Nxd4 {[%clk 0:02:41]}  e5 {[%clk 0:02:51]} 7. Nb5 {[%clk 0:02:38]}  a6 {[%clk 0:02:48]} 8. N5a3 {[%clk 0:02:33]}  Be7 {[%clk 0:02:47]} 9. c4 {[%clk 0:02:33]}  O-O {[%clk 0:02:47]} 10. Qc2 {[%clk 0:02:31]}  Nc5 {[%clk 0:02:45]} 11. b4 {[%clk 0:02:30]}  Ne6 {[%clk 0:02:46]} 12. Bb2 {[%clk 0:02:27]}  Nc6 {[%clk 0:02:46]} 13. Qd2 {[%clk 0:02:26]}  Ncd4 {[%clk 0:02:44]} 14. Bd3 {[%clk 0:02:25]}  Bg5 {[%clk 0:02:38]} 15. Qd1 {[%clk 0:02:20]}  Bd7 {[%clk 0:02:38]} 16. Nc3 {[%clk 0:02:19]}  Nf4 {[%clk 0:02:33]} 17. Be4 {[%clk 0:02:17]}  Bc6 {[%clk 0:02:32]} 18. g3 {[%clk 0:02:08]}  Nh3+ {[%clk 0:02:08]} 19. Kg2 {[%clk 0:02:03]}  Qd7 {[%clk 0:02:09]} 20. Qh5 {[%clk 0:01:48]}  f5 {[%clk 0:01:58]} 21. Bxc6 {[%clk 0:01:24]}  Qxc6+ {[%clk 0:01:58]} 22. Kxh3 {[%clk 0:01:22]}  h6 {[%clk 0:01:51]} 23. f4 {[%clk 0:01:18]}  Bf6 {[%clk 0:01:34]} 24. Nd5 {[%clk 0:01:14]}  b5 {[%clk 0:01:17]} 25. Bxd4 {[%clk 0:00:51]}  exd4 {[%clk 0:01:14]} 26. Qf3 {[%clk 0:00:47]}  Qe8 {[%clk 0:01:03]} 27. Nc7 {[%clk 0:00:42]}  Qc8 {[%clk 0:00:53]} 28. Nxa8 {[%clk 0:00:37]}  g5 {[%clk 0:00:48]} 29. Qd5+ {[%clk 0:00:34]}  Kg7 {[%clk 0:00:45]} 30. Nb6 {[%clk 0:00:32]}  Qe8 {[%clk 0:00:43]} 31. Rae1 {[%clk 0:00:26]}  Qh5+ {[%clk 0:00:42]} 32. Kg2 {[%clk 0:00:27]}  gxf4 {[%clk 0:00:43]} 33. Rxf4 {[%clk 0:00:24]}  Be5 {[%clk 0:00:41]} 34. Rxe5 {[%clk 0:00:19]}  dxe5 {[%clk 0:00:40]} 35. Qxe5+ {[%clk 0:00:20]}  Kg8 {[%clk 0:00:38]} 36. Qxd4 {[%clk 0:00:16]}  Qe2+ {[%clk 0:00:37]} 37. Rf2 {[%clk 0:00:17]}  Qe6 {[%clk 0:00:36]} 38. Qd5 {[%clk 0:00:17]}  Re8 {[%clk 0:00:36]} 39. cxb5 {[%clk 0:00:16]}  axb5 {[%clk 0:00:34]} 40. Nxb5 {[%clk 0:00:16]}  Qxd5+ {[%clk 0:00:35]} 41. Nxd5 {[%clk 0:00:17]}  Re5 {[%clk 0:00:35]} 42. Nbc7 {[%clk 0:00:17]}  Kf7 {[%clk 0:00:35]} 43. b5 {[%clk 0:00:18]}  f4 {[%clk 0:00:31]} 44. gxf4 {[%clk 0:00:17]} 1-0


[Site "https://www.chess.com"]

[Event "Titled Tuesday Blitz May 16 Early 2023"]
[White "liwadas82"]
[Black "lluiss"]
[WhiteElo "2450"]
[BlackElo "2297"]
[Result "1-0"]
[Round "05"]
[TimeControl "180+2"]
[Date "2023.05.16"]
[WhiteClock "0:01:12"]
[BlackClock "0:00:04"]

1. e4 {[%clk 0:03:00]}  c5 {[%clk 0:02:59]} 2. Nf3 {[%clk 0:03:01]}  d6 {[%clk 0:02:59]} 3. d4 {[%clk 0:03:01]}  cxd4 {[%clk 0:02:59]} 4. Nxd4 {[%clk 0:03:02]}  Nf6 {[%clk 0:02:58]} 5. Nc3 {[%clk 0:03:03]}  g6 {[%clk 0:02:58]} 6. g3 {[%clk 0:03:02]}  Nc6 {[%clk 0:02:56]} 7. Nde2 {[%clk 0:03:02]}  Bg4 {[%clk 0:02:55]} 8. Bg2 {[%clk 0:02:54]}  Bxe2 {[%clk 0:02:55]} 9. Qxe2 {[%clk 0:02:52]}  Bg7 {[%clk 0:02:56]} 10. O-O {[%clk 0:02:51]}  O-O {[%clk 0:02:55]} 11. Be3 {[%clk 0:02:49]}  Rc8 {[%clk 0:02:50]} 12. Nd5 {[%clk 0:02:38]}  Nd7 {[%clk 0:02:46]} 13. c4 {[%clk 0:02:32]}  Nce5 {[%clk 0:02:29]} 14. Rac1 {[%clk 0:02:28]}  e6 {[%clk 0:02:03]} 15. Nf4 {[%clk 0:02:24]}  Qa5 {[%clk 0:01:50]} 16. b3 {[%clk 0:02:23]}  Rfd8 {[%clk 0:01:36]} 17. Rfd1 {[%clk 0:02:23]}  Nc5 {[%clk 0:01:35]} 18. Qc2 {[%clk 0:02:09]}  Nc6 {[%clk 0:01:19]} 19. a4 {[%clk 0:01:59]}  Qc7 {[%clk 0:00:45]} 20. Rd2 {[%clk 0:01:48]}  a5 {[%clk 0:00:44]} 21. Rcd1 {[%clk 0:01:47]}  b6 {[%clk 0:00:40]} 22. Nd3 {[%clk 0:01:41]}  Nxd3 {[%clk 0:00:37]} 23. Qxd3 {[%clk 0:01:42]}  Nb4 {[%clk 0:00:36]} 24. Qe2 {[%clk 0:01:34]}  Nc6 {[%clk 0:00:35]} 25. f4 {[%clk 0:01:29]}  e5 {[%clk 0:00:35]} 26. Qf2 {[%clk 0:01:26]}  exf4 {[%clk 0:00:30]} 27. Bxb6 {[%clk 0:01:24]}  fxg3 {[%clk 0:00:27]} 28. hxg3 {[%clk 0:01:20]}  Qe7 {[%clk 0:00:27]} 29. Bxd8 {[%clk 0:01:19]}  Rxd8 {[%clk 0:00:28]} 30. Qb6 {[%clk 0:01:16]}  Ne5 {[%clk 0:00:07]} 31. Rxd6 {[%clk 0:01:15]}  Rxd6 {[%clk 0:00:07]} 32. Qxd6 {[%clk 0:01:15]}  Qg5 {[%clk 0:00:05]} 33. Qd8+ {[%clk 0:01:13]}  Bf8 {[%clk 0:00:04]} 34. Qxg5 {[%clk 0:01:12]} 1-0


[Site "https://www.chess.com"]

[Event "Titled Tuesday Blitz May 16 Early 2023"]
[White "Rodriguez Santiago, Jaime"]
[Black "Mazurkiewicz, Michal"]
[WhiteFideId "3100898"]
[BlackFideId "1124943"]
[WhiteElo "2025"]
[BlackElo "2054"]
[Result "1-0"]
[Round "05"]
[TimeControl "180+2"]
[Date "2023.05.16"]
[WhiteClock "0:00:44"]
[BlackClock "0:00:04"]

1. c4 {[%clk 0:03:00]}  Nf6 {[%clk 0:02:59]} 2. Nc3 {[%clk 0:03:00]}  g6 {[%clk 0:02:59]} 3. g3 {[%clk 0:02:59]}  Bg7 {[%clk 0:02:59]} 4. Bg2 {[%clk 0:03:00]}  O-O {[%clk 0:03:00]} 5. e4 {[%clk 0:03:00]}  d6 {[%clk 0:03:00]} 6. Nge2 {[%clk 0:02:59]}  c5 {[%clk 0:03:01]} 7. O-O {[%clk 0:02:58]}  Nc6 {[%clk 0:03:01]} 8. d3 {[%clk 0:02:58]}  Rb8 {[%clk 0:03:01]} 9. h3 {[%clk 0:02:57]}  a6 {[%clk 0:03:01]} 10. a4 {[%clk 0:02:58]}  Nd4 {[%clk 0:02:58]} 11. Rb1 {[%clk 0:02:55]}  Nd7 {[%clk 0:02:54]} 12. b4 {[%clk 0:02:54]}  cxb4 {[%clk 0:02:54]} 13. Rxb4 {[%clk 0:02:51]}  Nc5 {[%clk 0:02:53]} 14. Be3 {[%clk 0:02:37]}  Qa5 {[%clk 0:02:28]} 15. Nd5 {[%clk 0:02:14]}  Nxe2+ {[%clk 0:02:20]} 16. Qxe2 {[%clk 0:02:12]}  e6 {[%clk 0:02:19]} 17. Ne7+ {[%clk 0:02:04]}  Kh8 {[%clk 0:02:19]} 18. Rfb1 {[%clk 0:02:04]}  Nxa4 {[%clk 0:01:43]} 19. Nc6 {[%clk 0:01:59]}  Nc3 {[%clk 0:01:43]} 20. Qc2 {[%clk 0:01:40]}  bxc6 {[%clk 0:01:37]} 21. Rxb8 {[%clk 0:01:37]}  Nxb1 {[%clk 0:01:37]} 22. Rxb1 {[%clk 0:01:36]}  c5 {[%clk 0:01:37]} 23. Bd2 {[%clk 0:01:30]}  Qc7 {[%clk 0:01:34]} 24. Bc3 {[%clk 0:01:29]}  Bxc3 {[%clk 0:01:29]} 25. Qxc3+ {[%clk 0:01:28]}  e5 {[%clk 0:01:30]} 26. f4 {[%clk 0:01:27]}  f6 {[%clk 0:01:29]} 27. Rf1 {[%clk 0:01:18]}  Kg8 {[%clk 0:01:30]} 28. f5 {[%clk 0:01:18]}  g5 {[%clk 0:01:28]} 29. Bf3 {[%clk 0:01:18]}  Bd7 {[%clk 0:01:26]} 30. Ra1 {[%clk 0:01:15]}  Ra8 {[%clk 0:01:20]} 31. Ra5 {[%clk 0:01:12]}  Qb6 {[%clk 0:01:20]} 32. Qa1 {[%clk 0:01:05]}  Bc8 {[%clk 0:01:05]} 33. Be2 {[%clk 0:01:02]}  Rb8 {[%clk 0:01:05]} 34. Kf2 {[%clk 0:01:02]}  Qb2 {[%clk 0:01:02]} 35. Qa4 {[%clk 0:01:00]}  Qd4+ {[%clk 0:01:01]} 36. Kf3 {[%clk 0:00:56]}  Kf7 {[%clk 0:00:35]} 37. Qc6 {[%clk 0:00:55]}  Ke7 {[%clk 0:00:21]} 38. Qc7+ {[%clk 0:00:54]}  Bd7 {[%clk 0:00:14]} 39. Qxb8 {[%clk 0:00:54]}  Qg1 {[%clk 0:00:10]} 40. Rxa6 {[%clk 0:00:47]}  Qh1+ {[%clk 0:00:09]} 41. Ke3 {[%clk 0:00:46]}  Qc1+ {[%clk 0:00:09]} 42. Kf2 {[%clk 0:00:45]}  Qh1 {[%clk 0:00:04]} 43. Qxd6+ {[%clk 0:00:45]}  Ke8 {[%clk 0:00:04]} 44. Ra8+ {[%clk 0:00:44]}  Kf7 {[%clk 0:00:04]} 45. Qxd7# {[%clk 0:00:44]} 1-0


[Site "https://www.chess.com"]

[Event "Titled Tuesday Blitz May 16 Early 2023"]
[White "Afanasieva, Alexandra"]
[Black "merinasian"]
[WhiteFideId "34126926"]
[WhiteElo "1745"]
[BlackElo "2429"]
[Result "0-1"]
[Round "05"]
[TimeControl "180+2"]
[Date "2023.05.16"]
[WhiteClock "0:00:12"]
[BlackClock "0:00:17"]

1. e4 {[%clk 0:03:00]}  c6 {[%clk 0:03:00]} 2. d4 {[%clk 0:02:58]}  d5 {[%clk 0:02:57]} 3. e5 {[%clk 0:02:58]}  c5 {[%clk 0:02:56]} 4. c3 {[%clk 0:02:57]}  Nc6 {[%clk 0:02:51]} 5. Nf3 {[%clk 0:02:57]}  cxd4 {[%clk 0:02:33]} 6. cxd4 {[%clk 0:02:54]}  Bg4 {[%clk 0:02:33]} 7. Bb5 {[%clk 0:02:52]}  e6 {[%clk 0:02:27]} 8. Nc3 {[%clk 0:02:49]}  Ne7 {[%clk 0:02:16]} 9. Bg5 {[%clk 0:02:48]}  h6 {[%clk 0:02:13]} 10. Bxe7 {[%clk 0:02:46]}  Bxe7 {[%clk 0:02:12]} 11. Bxc6+ {[%clk 0:02:44]}  bxc6 {[%clk 0:02:11]} 12. Qa4 {[%clk 0:02:45]}  O-O {[%clk 0:02:04]} 13. Qxc6 {[%clk 0:02:39]}  Rb8 {[%clk 0:02:02]} 14. O-O {[%clk 0:02:15]}  Bxf3 {[%clk 0:01:55]} 15. gxf3 {[%clk 0:02:16]}  Rxb2 {[%clk 0:01:55]} 16. Kh1 {[%clk 0:02:15]}  Bh4 {[%clk 0:01:52]} 17. Nd1 {[%clk 0:02:00]}  Rb4 {[%clk 0:01:43]} 18. Rg1 {[%clk 0:01:25]}  Rxd4 {[%clk 0:01:38]} 19. Rb1 {[%clk 0:01:17]}  Rd2 {[%clk 0:01:28]} 20. Qc5 {[%clk 0:01:12]}  Rxa2 {[%clk 0:01:24]} 21. Rg4 {[%clk 0:01:10]}  Be7 {[%clk 0:01:22]} 22. Qe3 {[%clk 0:01:06]}  Kh8 {[%clk 0:01:14]} 23. Nc3 {[%clk 0:00:59]}  Rc2 {[%clk 0:01:11]} 24. Rbg1 {[%clk 0:00:41]}  Bg5 {[%clk 0:00:48]} 25. Qd3 {[%clk 0:00:30]}  Rd2 {[%clk 0:00:45]} 26. Qa6 {[%clk 0:00:18]}  Rxf2 {[%clk 0:00:36]} 27. h4 {[%clk 0:00:17]}  Bd2 {[%clk 0:00:30]} 28. Nd1 {[%clk 0:00:13]}  Rxf3 {[%clk 0:00:29]} 29. Qe2 {[%clk 0:00:12]}  Rh3+ {[%clk 0:00:29]} 30. Kg2 {[%clk 0:00:11]}  Rxh4 {[%clk 0:00:27]} 31. Rxh4 {[%clk 0:00:12]}  Qxh4 {[%clk 0:00:25]} 32. Qxd2 {[%clk 0:00:13]}  Rc8 {[%clk 0:00:21]} 33. Qf2 {[%clk 0:00:11]}  Qe4+ {[%clk 0:00:20]} 34. Kh2 {[%clk 0:00:10]}  Rc2 {[%clk 0:00:19]} 35. Rg2 {[%clk 0:00:11]}  Rxf2 {[%clk 0:00:19]} 36. Nxf2 {[%clk 0:00:12]}  Qxe5+ {[%clk 0:00:19]} 37. Kg1 {[%clk 0:00:12]}  a5 {[%clk 0:00:18]} 38. Ng4 {[%clk 0:00:11]}  Qa1+ {[%clk 0:00:18]} 39. Kh2 {[%clk 0:00:12]}  a4 {[%clk 0:00:18]} 40. Rc2 {[%clk 0:00:12]}  a3 {[%clk 0:00:18]} 41. Rc8+ {[%clk 0:00:12]}  Kh7 {[%clk 0:00:18]} 42. Ne5 {[%clk 0:00:12]}  a2 {[%clk 0:00:17]} 0-1


[Site "https://www.chess.com"]

[Event "Titled Tuesday Blitz May 16 Early 2023"]
[White "Shubenkova, Veronika"]
[Black "Kuchava, Ana"]
[WhiteFideId "44124040"]
[BlackFideId "13605348"]
[WhiteElo "2060"]
[BlackElo "2001"]
[Result "1-0"]
[Round "05"]
[TimeControl "180+2"]
[Date "2023.05.16"]
[WhiteClock "0:00:42"]
[BlackClock "0:00:00"]

1. e4 {[%clk 0:03:00]}  c5 {[%clk 0:02:42]} 2. Nc3 {[%clk 0:02:59]}  Nc6 {[%clk 0:02:41]} 3. g3 {[%clk 0:02:59]}  g6 {[%clk 0:02:37]} 4. Bg2 {[%clk 0:03:00]}  Bg7 {[%clk 0:02:31]} 5. d3 {[%clk 0:03:00]}  d6 {[%clk 0:02:30]} 6. f4 {[%clk 0:02:59]}  Nf6 {[%clk 0:02:27]} 7. Nf3 {[%clk 0:02:59]}  O-O {[%clk 0:02:24]} 8. O-O {[%clk 0:02:59]}  Bd7 {[%clk 0:02:19]} 9. Rb1 {[%clk 0:02:58]}  a6 {[%clk 0:02:15]} 10. h3 {[%clk 0:02:56]}  b5 {[%clk 0:02:12]} 11. Ne2 {[%clk 0:02:55]}  Rb8 {[%clk 0:02:11]} 12. g4 {[%clk 0:02:55]}  Qc7 {[%clk 0:02:10]} 13. Ng3 {[%clk 0:02:49]}  Nd4 {[%clk 0:01:57]} 14. Nxd4 {[%clk 0:02:47]}  cxd4 {[%clk 0:01:57]} 15. g5 {[%clk 0:02:47]}  Ne8 {[%clk 0:01:52]} 16. h4 {[%clk 0:02:47]}  Rc8 {[%clk 0:01:39]} 17. Rf2 {[%clk 0:02:47]}  Qc5 {[%clk 0:01:25]} 18. Bf3 {[%clk 0:02:44]}  Nc7 {[%clk 0:01:18]} 19. h5 {[%clk 0:02:42]}  Ne6 {[%clk 0:01:16]} 20. Qf1 {[%clk 0:02:30]}  Qc7 {[%clk 0:00:42]} 21. Rh2 {[%clk 0:02:25]}  Rfd8 {[%clk 0:00:34]} 22. f5 {[%clk 0:02:25]}  Nf8 {[%clk 0:00:30]} 23. Qh3 {[%clk 0:02:21]}  gxf5 {[%clk 0:00:17]} 24. Nxf5 {[%clk 0:02:20]}  Bxf5 {[%clk 0:00:17]} 25. exf5 {[%clk 0:02:17]}  Be5 {[%clk 0:00:15]} 26. Rg2 {[%clk 0:02:17]}  Qc5 {[%clk 0:00:12]} 27. Qg4 {[%clk 0:02:06]}  Qc7 {[%clk 0:00:08]} 28. g6 {[%clk 0:01:59]}  fxg6 {[%clk 0:00:07]} 29. hxg6 {[%clk 0:01:59]}  hxg6 {[%clk 0:00:08]} 30. Bh6 {[%clk 0:01:59]}  Bg7 {[%clk 0:00:07]} 31. Bxg7 {[%clk 0:01:59]}  Kxg7 {[%clk 0:00:08]} 32. fxg6 {[%clk 0:01:54]}  Qd7 {[%clk 0:00:07]} 33. Qh5 {[%clk 0:01:53]}  Qe6 {[%clk 0:00:05]} 34. Be4 {[%clk 0:01:42]}  Rc5 {[%clk 0:00:04]} 35. Qh4 {[%clk 0:01:34]}  Qf6 {[%clk 0:00:05]} 36. Qh3 {[%clk 0:01:27]}  Re5 {[%clk 0:00:04]} 37. Rf1 {[%clk 0:01:27]}  Qe6 {[%clk 0:00:02]} 38. Rf7+ {[%clk 0:01:25]}  Kg8 {[%clk 0:00:00]} 39. Qf3 {[%clk 0:00:42]} 1-0


[Site "https://www.chess.com"]

[Event "Titled Tuesday Blitz May 16 Early 2023"]
[White "Boder, Jan"]
[Black "Kielinkei"]
[WhiteFideId "16243226"]
[WhiteElo "2241"]
[BlackElo "2423"]
[Result "0-1"]
[Round "05"]
[TimeControl "180+2"]
[Date "2023.05.16"]
[WhiteClock "0:00:05"]
[BlackClock "0:00:05"]

1. c4 {[%clk 0:02:59]}  Nf6 {[%clk 0:02:59]} 2. g3 {[%clk 0:02:59]}  e6 {[%clk 0:02:54]} 3. Bg2 {[%clk 0:02:58]}  d5 {[%clk 0:02:55]} 4. Nf3 {[%clk 0:02:55]}  d4 {[%clk 0:02:54]} 5. O-O {[%clk 0:02:51]}  c5 {[%clk 0:02:52]} 6. b4 {[%clk 0:02:33]}  cxb4 {[%clk 0:02:49]} 7. Bb2 {[%clk 0:02:25]}  Nc6 {[%clk 0:02:49]} 8. e3 {[%clk 0:02:17]}  dxe3 {[%clk 0:02:35]} 9. fxe3 {[%clk 0:02:15]}  Be7 {[%clk 0:02:35]} 10. d4 {[%clk 0:02:13]}  O-O {[%clk 0:02:35]} 11. Nbd2 {[%clk 0:02:04]}  Qc7 {[%clk 0:02:02]} 12. Qe2 {[%clk 0:01:27]}  Bd7 {[%clk 0:01:33]} 13. Rac1 {[%clk 0:01:22]}  Qa5 {[%clk 0:01:24]} 14. Ra1 {[%clk 0:01:02]}  Rad8 {[%clk 0:01:09]} 15. Nb3 {[%clk 0:01:00]}  Qh5 {[%clk 0:01:05]} 16. Qc2 {[%clk 0:00:51]}  Qg6 {[%clk 0:00:58]} 17. Qe2 {[%clk 0:00:46]}  a5 {[%clk 0:00:48]} 18. a3 {[%clk 0:00:42]}  a4 {[%clk 0:00:46]} 19. Nbd2 {[%clk 0:00:41]}  b3 {[%clk 0:00:47]} 20. Rad1 {[%clk 0:00:40]}  Na5 {[%clk 0:00:35]} 21. Rc1 {[%clk 0:00:37]}  b5 {[%clk 0:00:32]} 22. Ne5 {[%clk 0:00:36]}  Qh6 {[%clk 0:00:28]} 23. c5 {[%clk 0:00:35]}  Nd5 {[%clk 0:00:21]} 24. c6 {[%clk 0:00:34]}  Bc8 {[%clk 0:00:20]} 25. c7 {[%clk 0:00:33]}  Rde8 {[%clk 0:00:19]} 26. e4 {[%clk 0:00:33]}  Ne3 {[%clk 0:00:18]} 27. Ndf3 {[%clk 0:00:20]}  Nxf1 {[%clk 0:00:16]} 28. Bxf1 {[%clk 0:00:18]}  f6 {[%clk 0:00:14]} 29. Ng4 {[%clk 0:00:06]}  Qg6 {[%clk 0:00:14]} 30. Nf2 {[%clk 0:00:05]}  Nc4 {[%clk 0:00:13]} 31. Rxc4 {[%clk 0:00:03]}  bxc4 {[%clk 0:00:13]} 32. Qxc4 {[%clk 0:00:04]}  Qh5 {[%clk 0:00:12]} 33. Kg2 {[%clk 0:00:03]}  Qa5 {[%clk 0:00:10]} 34. Qb5 {[%clk 0:00:02]}  Qxc7 {[%clk 0:00:08]} 35. d5 {[%clk 0:00:02]}  exd5 {[%clk 0:00:08]} 36. exd5 {[%clk 0:00:03]}  Bd7 {[%clk 0:00:08]} 37. Qd3 {[%clk 0:00:02]}  Bd6 {[%clk 0:00:07]} 38. Qb1 {[%clk 0:00:02]}  f5 {[%clk 0:00:06]} 39. Bd3 {[%clk 0:00:02]}  Re7 {[%clk 0:00:02]} 40. Bd4 {[%clk 0:00:03]}  Bc5 {[%clk 0:00:02]} 41. Qb2 {[%clk 0:00:04]}  Bxd4 {[%clk 0:00:02]} 42. Qxd4 {[%clk 0:00:05]}  Qd6 {[%clk 0:00:02]} 43. Qh4 {[%clk 0:00:04]}  Qxa3 {[%clk 0:00:02]} 44. Ng5 {[%clk 0:00:04]}  h6 {[%clk 0:00:03]} 45. Ngh3 {[%clk 0:00:04]}  b2 {[%clk 0:00:02]} 46. Nf4 {[%clk 0:00:02]}  Qd6 {[%clk 0:00:02]} 47. Qh5 {[%clk 0:00:01]}  a3 {[%clk 0:00:02]} 48. Ng6 {[%clk 0:00:01]}  a2 {[%clk 0:00:03]} 49. Nxe7+ {[%clk 0:00:01]}  Qxe7 {[%clk 0:00:04]} 50. h4 {[%clk 0:00:01]}  a1=Q {[%clk 0:00:04]} 51. Qg6 {[%clk 0:00:01]}  Qf6 {[%clk 0:00:04]} 52. Qh5 {[%clk 0:00:01]}  b1=Q {[%clk 0:00:04]} 53. Qf3 {[%clk 0:00:02]}  Qg1+ {[%clk 0:00:04]} 54. Kh3 {[%clk 0:00:01]}  f4+ {[%clk 0:00:04]} 55. g4 {[%clk 0:00:02]}  Bxg4+ {[%clk 0:00:04]} 56. Qxg4 {[%clk 0:00:01]}  Qxg4+ {[%clk 0:00:04]} 57. Nxg4 {[%clk 0:00:02]}  Qfc3 {[%clk 0:00:05]} 58. Nf2 {[%clk 0:00:02]}  Qab2 {[%clk 0:00:05]} 59. Kg4 {[%clk 0:00:03]}  Qxf2 {[%clk 0:00:05]} 60. d6 {[%clk 0:00:03]}  Qxd3 {[%clk 0:00:04]} 61. d7 {[%clk 0:00:04]}  Qdg3+ {[%clk 0:00:04]} 62. Kh5 {[%clk 0:00:05]}  Qff3# {[%clk 0:00:05]} 0-1


[Site "https://www.chess.com"]

[Event "Titled Tuesday Blitz May 16 Early 2023"]
[White "Van Dael, Siem"]
[Black "agvania123"]
[WhiteFideId "1049771"]
[WhiteElo "2336"]
[BlackElo "2237"]
[Result "1-0"]
[Round "05"]
[TimeControl "180+2"]
[Date "2023.05.16"]
[WhiteClock "0:01:37"]
[BlackClock "0:00:13"]

1. e4 {[%clk 0:03:00]}  d5 {[%clk 0:03:00]} 2. exd5 {[%clk 0:03:00]}  Qxd5 {[%clk 0:03:00]} 3. Nc3 {[%clk 0:03:00]}  Qd8 {[%clk 0:03:00]} 4. d4 {[%clk 0:02:59]}  Nf6 {[%clk 0:03:00]} 5. Bc4 {[%clk 0:03:00]}  a6 {[%clk 0:03:00]} 6. Bb3 {[%clk 0:02:59]}  b5 {[%clk 0:02:59]} 7. Qf3 {[%clk 0:02:57]}  c6 {[%clk 0:02:44]} 8. Nge2 {[%clk 0:02:55]}  Bb7 {[%clk 0:02:43]} 9. Bf4 {[%clk 0:02:51]}  e6 {[%clk 0:02:43]} 10. O-O-O {[%clk 0:02:51]}  Bd6 {[%clk 0:02:41]} 11. Be5 {[%clk 0:02:46]}  Qe7 {[%clk 0:02:24]} 12. Qg3 {[%clk 0:02:41]}  Bxe5 {[%clk 0:01:48]} 13. dxe5 {[%clk 0:02:34]}  Nh5 {[%clk 0:01:44]} 14. Qg4 {[%clk 0:02:31]}  g6 {[%clk 0:01:43]} 15. Ne4 {[%clk 0:02:27]}  O-O {[%clk 0:01:36]} 16. N2g3 {[%clk 0:02:26]}  Ng7 {[%clk 0:01:12]} 17. h4 {[%clk 0:02:25]}  h5 {[%clk 0:01:09]} 18. Qf4 {[%clk 0:02:24]}  Nf5 {[%clk 0:00:51]} 19. Nxf5 {[%clk 0:02:13]}  exf5 {[%clk 0:00:51]} 20. Qh6 {[%clk 0:01:45]}  fxe4 {[%clk 0:00:44]} 21. Qxg6+ {[%clk 0:01:44]}  Kh8 {[%clk 0:00:45]} 22. Qh6+ {[%clk 0:01:44]}  Kg8 {[%clk 0:00:13]} 23. Rd6 {[%clk 0:01:37]} 1-0


[Site "https://www.chess.com"]